fUSD/lending_fUSD_20241027
["ID","MTS","AMOUNT","RATE_DAILY","PERIOD"]
[340881359,1730004638480,-500.0,0.00043899,120]
[340881360,1730004638489,-500.0,0.00043899,120]
[340881361,1730004638499,-500.0,0.00043899,120]
[340881362,1730004638508,-500.0,0.00043899,120]
[340881363,1730004638517,-156.51697129,0.00043899,15]
[340881364,1730004638527,-150.0,0.00043918,2]
[340881365,1730004638536,-150.0,0.00043928,2]
[340881366,1730004638545,-156.51697129,0.00043929,15]
[340881367,1730004638554,-160.56428841,0.00043934,18]
[340881368,1730004638563,-2633.29616291,0.00043947,23]
[340881369,1730004638573,-863.3328,0.00043949,2]
[340881370,1730004638582,-2019.0563,0.00043949,2]
[340881371,1730004638592,-156.51697129,0.00043959,15]
[340881372,1730004638601,-386.04173442,0.00043959,2]
[340881373,1730004638610,-385.37295844,0.00043959,2]
[340881374,1730004638620,-395.7840385,0.00043959,2]
[340881375,1730004638629,-344.67910795,0.00043959,2]
[340881376,1730004638639,-150.0,0.00043964,2]
[340881377,1730004638648,-150.0,0.00043965,2]
[340881378,1730004638657,-150.0,0.00043967,2]
[340881379,1730004638666,-1148.2582125,0.0004397,3]
[340881380,1730004638676,-1000.0,0.0004397,3]
[340881381,1730004638685,-1000.0,0.0004397,3]
[340881382,1730004638694,-747.87297583,0.0004397,3]
[340881383,1730004638704,-1000.0,0.0004397,3]
[340881384,1730004638713,-500.0,0.0004397,3]
[340881385,1730004638722,-1000.0,0.0004397,3]
[340881386,1730004638731,-500.0,0.0004397,3]
[340881387,1730004638741,-1000.0,0.0004397,3]
[340881388,1730004638751,-500.0,0.0004397,3]
[340881389,1730004638760,-1000.0,0.0004397,3]
[340881390,1730004638769,-500.0,0.0004397,3]
[340881391,1730004638779,-150.0,0.00043979,2]
[340881392,1730004638788,-25889.637152,0.0004398,10]
[340881393,1730004638799,-163.96575926,0.0004398,2]
[340881394,1730004638808,-196.33707242,0.0004398,30]
[340881395,1730004638817,-500.0,0.00043982,4]
[340881396,1730004638826,-6472.409288,0.00043985,10]
[340881397,1730004638837,-2869.99206183,0.00043987,2]
[340881398,1730004638847,-4880.87779946,0.00043987,2]
[340881399,1730004638856,-11555.5,0.00043987,5]
[340881400,1730004638866,-4489.87,0.00043987,5]
[340881401,1730004638875,-150.0,0.00043988,2]
[340881402,1730004638884,-500.0,0.00043988,5]
[340881403,1730004638893,-732.8,0.00043988,5]
[340881404,1730004638902,-500.0,0.00043988,5]
[340881405,1730004638913,-4387.48,0.00043988,5]
[340881406,1730004638922,-500.0,0.00043988,5]
[340881407,1730004638931,-372.99843221,0.00043988,5]
[340881408,1730004638940,-500.0,0.00043988,5]
[340881409,1730004638949,-500.0,0.00043988,5]
[340881410,1730004638958,-2878.81,0.00043988,5]
[340881411,1730004638967,-3563.39,0.00043988,5]
[340881412,1730004638976,-500.0,0.00043988,5]
[340881413,1730004638985,-500.0,0.00043988,5]
[340881414,1730004638995,-500.0,0.00043988,5]
[340881415,1730004639004,-500.0,0.00043988,5]
[340881416,1730004639017,-2352.91,0.00043988,5]
[340881417,1730004639026,-500.0,0.00043988,5]
[340881418,1730004639035,-500.0,0.00043988,5]
[340881419,1730004639045,-19417.227864,0.00043989,10]
[340881420,1730004639054,-500.0,0.00043989,5]
[340881421,1730004639064,-500.0,0.00043989,5]
[340881422,1730004639073,-500.0,0.00043989,2]
[340881423,1730004639082,-500.0,0.00043989,5]
[340881424,1730004639093,-500.0,0.00043989,5]
[340881425,1730004639102,-532.42,0.00043989,5]
[340881426,1730004639111,-500.0,0.00043989,5]
[340881427,1730004639120,-500.0,0.00043989,5]
[340881428,1730004639129,-844.15,0.00043989,5]
[340881429,1730004639139,-508.9823,0.00043989,2]
[340881430,1730004639148,-500.0,0.00043989,5]
[340881431,1730004639157,-500.0,0.00043989,5]
[340881432,1730004639166,-151.0,0.0004399,14]
[340881433,1730004639175,-151.0,0.0004399,14]
[340881434,1730004639184,-154.866012,0.0004399,14]
[340881435,1730004639193,-421.892983,0.0004399,14]
[340881436,1730004639203,-152.668411,0.0004399,14]
[340881437,1730004639212,-169.381802,0.0004399,14]
[340881438,1730004639221,-153.276281,0.0004399,14]
[340881439,1730004639231,-154.88397,0.0004399,14]
[340881440,1730004639240,-110030.957896,0.0004399,10]
[340881441,1730004639249,-7129.90276456,0.0004399,30]
[340881442,1730004639259,-500.0,0.00043991,4]
[340881443,1730004639268,-213.92957531,0.00043999,30]
[340881444,1730004639277,-151.0,0.00043999,14]
[340881445,1730004639286,-500.0,0.00043999,5]
[340881446,1730004639296,-500.0,0.00043999,31]
[340881447,1730004639305,-445.98561626,0.00043999,120]
[340881448,1730004639314,-500.0,0.00043999,31]
[340881449,1730004639324,-529.71790992,0.00043999,31]
[340881450,1730004639334,-500.0,0.00043999,5]
[340881451,1730004639343,-500.0,0.00043999,5]
[340881452,1730004639352,-500.0,0.00043999,5]
[340881453,1730004639362,-500.0,0.00043999,5]
[340881454,1730004639371,-732.8,0.00043999,5]
[340881455,1730004639381,-532.42,0.00043999,5]
[340881456,1730004639390,-500.0,0.00043999,5]
[340881457,1730004639399,-500.0,0.00043999,5]
[340881458,1730004639409,-4387.48,0.00043999,5]
[340881459,1730004639418,-237.24455439,0.00043999,5]
[340881460,1730004639429,-500.0,0.00043999,5]
[340881461,1730004639439,-844.15,0.00043999,5]
[340881462,1730004639448,-500.0,0.00043999,5]
[340881463,1730004639458,-500.0,0.00043999,5]
[340881464,1730004639467,-500.0,0.00043999,5]
[340881465,1730004639477,-2878.81,0.00043999,5]
[340881466,1730004639486,-3563.39,0.00043999,5]
[340881467,1730004639495,-512.93883044,0.00043999,5]
[340881468,1730004639504,-11555.5,0.00043999,5]
[340881469,1730004639514,-4489.87,0.00043999,5]
[340881470,1730004639523,-500.0,0.00043999,5]
[340881471,1730004639533,-500.0,0.00043999,5]
[340881472,1730004639626,-500.0,0.00043999,5]
[340881473,1730004639636,-500.0,0.00043999,5]
[340881474,1730004639645,-2352.91,0.00043999,5]
[340881475,1730004639654,-500.0,0.00043999,5]
[340881476,1730004639663,-500.0,0.00043999,5]
[340881477,1730004639673,-2290.0,0.00044,4]
[340881478,1730004639682,-397.0,0.00044,31]
[340881479,1730004639691,-106994.32261123,0.00044,30]
[340881487,1730004639796,-500.0,0.00043899,120]
[340881488,1730004639806,-1462.614044,0.00044,30]
[340881489,1730004639864,-500.0,0.00043899,120]
[340881490,1730004639873,-500.0,0.00043899,120]
[340881491,1730004639882,-500.0,0.00043899,120]
[340881492,1730004639892,-500.0,0.00043899,120]
[340881493,1730004639901,-500.0,0.00043899,120]
[340881494,1730004639913,-93765.06334477,0.00044,30]
[340881495,1730004639923,-175.0,0.00044,120]
[340881496,1730004639933,-2000.0,0.00044,120]
[340881497,1730004639942,-3503.11522582,0.00044,7]
[340881498,1730004639951,-807.0,0.00044,31]
[340881499,1730004639963,-500.0,0.00044,4]
[340881500,1730004639972,-154.112122,0.00044,14]
[340881501,1730004639981,-151.864204,0.00044,14]
[340881502,1730004639990,-1944.240868,0.00044,57]
[340881503,1730004639999,-503.331584,0.00044,57]
[340881504,1730004640010,-170.162164,0.00044,14]
[340881505,1730004640020,-151.0,0.00044,14]
[340881506,1730004640029,-158.023065,0.00044,14]
[340881507,1730004640039,-151.0,0.00044,14]
[340881508,1730004640048,-151.555208,0.00044,14]
[340881509,1730004640057,-153.520185,0.00044,14]
[340881510,1730004640067,-153.205522,0.00044,14]
[340881511,1730004640077,-179.111383,0.00044,14]
[340881512,1730004640086,-151.0,0.00044,14]
[340881513,1730004640095,-151.629726,0.00044,14]
[340881514,1730004640104,-151.0,0.00044,14]
[340881515,1730004640113,-151.0,0.00044,14]
[340881516,1730004640123,-421.892983,0.00044,14]
[340881517,1730004640132,-251.596704,0.00044,14]
[340881518,1730004640141,-151.0,0.00044,14]
[340881519,1730004640150,-151.0,0.00044,14]
[340881520,1730004640159,-156.030394,0.00044,14]
[340881521,1730004640168,-159.386336,0.00044,14]
[340881522,1730004640178,-1561.89319993,0.00044,7]
[340881523,1730004640188,-228.55511,0.00044,14]
[340881524,1730004640197,-153.495709,0.00044,14]
[340881525,1730004640206,-151.0,0.00044,14]
[340881526,1730004640216,-228.55511,0.00044,14]
[340881527,1730004640225,-155.830014,0.00044,14]
[340881528,1730004640234,-368.0,0.00044,30]
[340881529,1730004640244,-152.299438,0.00044,14]
[340881530,1730004640253,-151.891986,0.00044,14]
[340881531,1730004640262,-152.304421,0.00044,14]
[340881533,1730004640271,-1000.0,0.00044,30]
[340881534,1730004640281,-6472.409288,0.00044008,10]
[340881535,1730004640290,-12944.818576,0.00044017,10]
[340881536,1730004640299,-12944.818576,0.00044019,10]
[340881537,1730004640308,-6472.409288,0.00044022,10]
[340881538,1730004640317,-6472.409288,0.00044024,10]
[340881539,1730004640326,-252.50633603,0.00044024,7]
[340881540,1730004640335,-150.0,0.00044024,2]
[340881541,1730004640345,-732.8,0.00044027,5]
[340881542,1730004640354,-4387.48,0.00044027,5]
[340881543,1730004640363,-204.0,0.00044027,120]
[340881544,1730004640372,-500.0,0.00044028,5]
[340881545,1730004640381,-2878.81,0.00044028,5]
[340881546,1730004640391,-11555.5,0.00044028,5]
[340881547,1730004640400,-4489.87,0.00044028,5]
[340881548,1730004640410,-500.0,0.00044028,5]
[340881549,1730004640419,-2352.91,0.00044028,5]
[340881550,1730004640428,-500.0,0.00044028,5]
[340881551,1730004640437,-5639.66280536,0.00044029,2]
[340881552,1730004640449,-574.0,0.00044029,2]
[340881553,1730004640464,-500.0,0.00043899,120]
[340881554,1730004640473,-1258.65694194,0.00044029,2]
[340881555,1730004640482,-1710.48137022,0.00044029,2]
[340881556,1730004640493,-999.9113796,0.00044029,2]
[340881557,1730004640504,-1074.7,0.00044029,2]
[340881567,1730004644486,-500.0,0.00043899,120]
[340881568,1730004644495,-500.0,0.00043899,120]
[340881569,1730004644505,-500.0,0.00043899,120]
[340881570,1730004644514,-500.0,0.00043899,120]
[340881571,1730004644523,-500.0,0.00043899,120]
[340881572,1730004644533,-500.0,0.00043899,120]
[340881573,1730004644542,-500.0,0.00043899,120]
[340881574,1730004644551,-576.33358045,0.00043959,2]
[340881575,1730004644561,-342.10152745,0.00044029,2]
[340881576,1730004644573,-2020.99468513,0.00044029,2]
[340881577,1730004644583,-2646.76754497,0.00044029,2]
[340881590,1730004645775,-167.36827235,0.00043988,2]
[340881591,1730004645786,-283.76806142,0.00043988,2]
[340881592,1730004645796,-154.302819,0.00044,14]
[340881593,1730004645805,-2177.29063263,0.00044029,2]
[340881594,1730004645814,-3499.9273927,0.00044029,2]
[340881595,1730004645823,-2175.7966078,0.00044029,2]
[340881596,1730004645832,-93.84623518,0.00044029,2]
[340881597,1730004645843,-3670.55068052,0.00044029,2]
[340881598,1730004645852,-2318.18582607,0.00044029,2]
[340881599,1730004645941,-781.90575153,0.00044029,2]
[340881600,1730004645950,-24.50472644,0.00044029,2]
[340881601,1730004645996,-2411.28151316,0.00044029,2]
[340881602,1730004646005,-1771.4809015,0.00044029,2]
[340881603,1730004646017,-1107.1755634,0.00044029,2]
[340881604,1730004646026,-1000.0,0.00044029,2]
[340881605,1730004646036,-12944.818576,0.00044032,10]
[340881606,1730004646045,-500.0,0.00044032,5]
[340881607,1730004646054,-500.0,0.00044032,5]
[340881608,1730004646063,-3563.39,0.00044032,5]
[340881609,1730004646073,-601.50445493,0.00044032,5]
[340881610,1730004646082,-500.0,0.00044032,5]
[340881611,1730004646091,-151.0,0.00044032,14]
[340881612,1730004646100,-411.70943178,0.00044032,5]
[340881613,1730004646110,-500.0,0.00044033,5]
[340881614,1730004646119,-500.0,0.00044033,5]
[340881615,1730004646128,-500.0,0.00044033,5]
[340881616,1730004646137,-532.42,0.00044033,5]
[340881617,1730004646146,-500.0,0.00044033,5]
[340881618,1730004646154,-844.15,0.00044033,5]
[340881620,1730004646163,-500.0,0.00044033,5]
[340881622,1730004646173,-356.53585146,0.00044033,5]
[340881623,1730004646182,-152.023604,0.00044034,14]
[340881624,1730004646191,-151.634702,0.00044034,14]
[340881625,1730004646200,-151.0,0.00044034,14]
[340881626,1730004646209,-151.0,0.00044034,14]
[340881627,1730004646218,-181.586003,0.00044034,14]
[340881628,1730004646227,-424.959873,0.00044034,14]
[340881629,1730004646237,-424.959873,0.00044034,14]
[340881630,1730004646246,-156.568503,0.00044034,14]
[340881631,1730004646255,-151.0,0.00044034,14]
[340881632,1730004646264,-150.0,0.00044034,2]
[340881633,1730004646273,-151.0,0.00044034,14]
[340881634,1730004646282,-151.0,0.00044034,14]
[340881635,1730004646292,-153.519151,0.00044034,14]
[340881636,1730004646301,-6472.409288,0.00044034,10]
[340881637,1730004646311,-500.0,0.00044035,30]
[340881638,1730004646320,-500.0,0.00044035,30]
[340881639,1730004646329,-500.0,0.00044035,30]
[340881640,1730004646338,-500.0,0.00044035,30]
[340881641,1730004646347,-500.0,0.00044035,30]
[340881642,1730004646356,-210.18985951,0.00044035,30]
[340881643,1730004646365,-153.657258,0.00044035,14]
[340881644,1730004646374,-265.617809,0.00044035,14]
[340881645,1730004646383,-424.959873,0.00044035,14]
[340881646,1730004646392,-424.959873,0.00044035,14]
[340881647,1730004646401,-151.0,0.00044035,14]
[340881648,1730004646410,-150.0,0.00044035,2]
[340881649,1730004646419,-151.0,0.00044035,14]
[340881650,1730004646428,-192.743163,0.00044035,14]
[340881651,1730004646437,-150.0,0.00044039,14]
[340881652,1730004646446,-150.0,0.00044041,2]
[340881653,1730004646455,-151.0,0.00044042,14]
[340881654,1730004646464,-151.0,0.00044042,14]
[340881655,1730004646473,-163.51151,0.00044042,14]
[340881656,1730004646482,-421.892983,0.00044042,14]
[340881657,1730004646491,-732.8,0.00044042,5]
[340881658,1730004646500,-4387.48,0.00044042,5]
[340881659,1730004646509,-151.0,0.00044042,14]
[340881660,1730004646518,-151.0,0.00044042,14]
[340881661,1730004646527,-228.55511,0.00044042,14]
[340881662,1730004646536,-228.55511,0.00044042,14]
[340881663,1730004646545,-151.0,0.00044043,14]
[340881664,1730004646554,-532.42,0.00044043,5]
[340881665,1730004646563,-844.15,0.00044043,5]
[340881666,1730004646573,-500.0,0.00044044,5]
[340881667,1730004646582,-500.0,0.00044044,5]
[340881668,1730004646591,-500.0,0.00044044,5]
[340881669,1730004646600,-500.0,0.00044044,5]
[340881670,1730004646608,-500.0,0.00044044,5]
[340881671,1730004646617,-443.95270897,0.00044044,5]
[340881672,1730004646626,-500.0,0.00044044,5]
[340881673,1730004646636,-500.0,0.00044044,5]
[340881674,1730004646646,-500.0,0.00044044,5]
[340881675,1730004646656,-732.8,0.00044044,5]
[340881676,1730004646666,-66.73647155,0.00044044,5]
[340881677,1730004707087,200253.23729317,0.00044059,120]
[340881678,1730004790960,154.98,0.00015342,2]
[340881679,1730004971161,377.22183728,0.00044059,90]
[340881680,1730005022529,300.0,0.00019725,2]
[340881682,1730005209341,150.0,0.00019725,2]
[340881683,1730005209545,150.0,0.00019725,2]
[340881684,1730005209735,150.0,0.00019725,2]
[340881685,1730005209921,150.0,0.00019725,2]
[340881686,1730005210115,150.0,0.00019725,2]
[340881687,1730005210301,150.0,0.00019725,2]
[340881688,1730005210590,150.0,0.00019725,2]
[340881689,1730005210777,150.0,0.00019725,2]
[340881690,1730005210956,150.0,0.00019725,2]
[340881691,1730005211126,150.0,0.00019725,2]
[340881692,1730005211291,150.0,0.00019725,2]
[340881693,1730005211475,150.0,0.00019725,2]
[340881694,1730005211670,150.0,0.00019725,2]
[340881695,1730005211851,150.0,0.00019725,2]
[340881696,1730005212024,150.0,0.00019725,2]
[340881697,1730005212191,150.0,0.00019725,2]
[340881698,1730005212365,150.0,0.00019725,2]
[340881699,1730005212454,250.0,0.00015,2]
[340881700,1730005212794,150.0,0.00019725,2]
[340881701,1730005213206,150.0,0.00019725,2]
[340881702,1730005213423,150.0,0.00019725,2]
[340881703,1730005213533,300.0,0.00017,2]
[340881704,1730005213591,150.0,0.00019725,2]
[340881705,1730005213763,9.66,0.00019725,2]
[340881710,1730005832224,-159.36,0.00015342,2]
[340881711,1730005832235,-154.38,0.00015342,2]
[340881712,1730005832247,-429.0,0.000186,2]
[340881713,1730005832257,-1541.00984489,0.00019725,2]
[340881714,1730005832267,-150.0,0.00019725,2]
[340881715,1730005832277,-150.0,0.00019725,2]
[340881716,1730005832286,-150.0,0.00019725,2]
[340881717,1730005832296,-150.0,0.00019725,2]
[340881718,1730005832306,-150.0,0.00019725,2]
[340881719,1730005832316,-150.0,0.00019725,2]
[340881720,1730005832326,-150.0,0.00019725,2]
[340881721,1730005832338,-150.0,0.00019725,2]
[340881722,1730005832349,-150.0,0.00019725,2]
[340881723,1730005832360,-150.0,0.00019725,2]
[340881724,1730005832371,-150.0,0.00019725,2]
[340881725,1730005832382,-150.0,0.00019725,2]
[340881727,1730005832392,-150.0,0.00019725,2]
[340881729,1730005832402,-212.39714382,0.00019725,2]
[340881731,1730005832414,-152.0,0.00038096,3]
[340881733,1730005832424,-552.42,0.00040911,2]
[340881735,1730005832435,-155.64,0.00042541,2]
[340881736,1730005832446,-155.43,0.00042712,2]
[340881737,1730005832456,-178.48,0.00042733,2]
[340881738,1730005832466,-1000.0,0.00042737,2]
[340881739,1730005832476,-250.0,0.00042812,120]
[340881740,1730005832487,-150.0,0.00042822,7]
[340881741,1730005832499,-170.9,0.00042878,2]
[340881742,1730005832510,-170.97,0.00042978,120]
[340881743,1730005832521,-506.0,0.00043,10]
[340881744,1730005832533,-1000.0,0.00043,8]
[340881745,1730005832546,-152.0,0.00043021,4]
[340881746,1730005832557,-552.42,0.00043175,2]
[340881747,1730005832570,-789.96,0.00043562,2]
[340881748,1730005832581,-150.0,0.00043815,2]
[340881749,1730005832591,-500.0,0.00043835,5]
[340881750,1730005832601,-150.0,0.00043878,4]
[340881751,1730005832612,-500.0,0.00043879,5]
[340881752,1730005832622,-665.95310683,0.00043951,15]
[340881753,1730005832632,-665.95310675,0.00043952,15]
[340881754,1730005832643,-665.95310675,0.00043954,15]
[340881755,1730005832653,-665.95310675,0.00043955,15]
[340881756,1730005832664,-152.42658803,0.00043956,28]
[340881757,1730005832675,-665.95310675,0.00043956,15]
[340881758,1730005832685,-6239.1967,0.00043957,2]
[340881759,1730005832695,-665.95310675,0.00043958,15]
[340881760,1730005832705,-152.42658806,0.00043958,28]
[340881761,1730005832716,-397.382,0.00043958,69]
[340881762,1730005832726,-178.56705682,0.00043958,69]
[340881763,1730005832737,-215.94149961,0.00043958,16]
[340881764,1730005832747,-173.86654749,0.00043959,13]
[340881765,1730005832757,-665.95310675,0.00043959,15]
[340881766,1730005832768,-665.95310675,0.0004396,15]
[340881767,1730005832780,-665.95310675,0.00043962,15]
[340881768,1730005832791,-665.95310675,0.00043963,15]
[340881769,1730005832801,-634.21362726,0.00043963,2]
[340881770,1730005832812,-500.0,0.00043988,5]
[340881771,1730005832822,-500.0,0.00043988,5]
[340881772,1730005832833,-500.0,0.00043999,5]
[340881773,1730005832846,-528.58036281,0.00043999,5]
[340881774,1730005832856,-194.62900296,0.00044,11]
[340881775,1730005832867,-397.0,0.00044,31]
[340881776,1730005832877,-150.0,0.00044,57]
[340881777,1730005832888,-503.331584,0.00044,57]
[340881778,1730005833031,-1000.0,0.00044,30]
[340881779,1730005833043,-150.0,0.00044001,2]
[340881780,1730005833053,-537.24146778,0.00044032,5]
[340881781,1730005833063,-189.17870761,0.0004404,2]
[340881782,1730005833072,-518.42877985,0.00044044,2]
[340881783,1730005833082,-7129.90276456,0.00044045,30]
[340881784,1730005833091,-7129.90276456,0.00044045,30]
[340881785,1730005833101,-7129.90276456,0.00044045,30]
[340881786,1730005833110,-7129.90276456,0.00044045,30]
[340881787,1730005833120,-500.0,0.00044051,5]
[340881788,1730005833129,-549.6,0.00044051,5]
[340881789,1730005833138,-3473.42,0.00044051,5]
[340881790,1730005833147,-500.0,0.00044051,5]
[340881791,1730005833156,-2399.01,0.00044051,5]
[340881792,1730005833165,-9629.59,0.00044051,5]
[340881793,1730005833174,-500.0,0.00044051,5]
[340881794,1730005833183,-3741.55,0.00044051,5]
[340881795,1730005833193,-1960.76,0.00044051,5]
[340881796,1730005833202,-154.21848461,0.00044051,5]
[340881797,1730005833211,-146707.943862,0.00044052,10]
[340881798,1730005833221,-183.99784003,0.00044052,2]
[340881799,1730005833230,-464.0,0.00044053,2]
[340881800,1730005833240,-1000.0,0.00044053,30]
[340881801,1730005833250,-4314.93952534,0.00044053,10]
[340881802,1730005833259,-269.0,0.00044055,120]
[340881803,1730005833268,-500.0,0.00044056,5]
[340881804,1730005833278,-500.0,0.00044056,5]
[340881805,1730005833287,-500.0,0.00044056,5]
[340881806,1730005833296,-500.0,0.00044056,5]
[340881807,1730005833306,-500.0,0.00044056,5]
[340881808,1730005833315,-668.28,0.00044056,5]
[340881809,1730005833324,-137.46952605,0.00044056,5]
[340881810,1730005833364,-362.53047395,0.00044056,5]
[340881811,1730005833374,-500.0,0.00044056,5]
[340881812,1730005833384,-500.0,0.00044056,5]
[340881813,1730005833393,-556.54049864,0.00044056,5]
[340881814,1730005833402,-500.0,0.00044057,5]
[340881815,1730005833412,-500.0,0.00044057,5]
[340881816,1730005833421,-500.0,0.00044057,5]
[340881817,1730005833430,-500.0,0.00044057,5]
[340881818,1730005833439,-500.0,0.00044057,5]
[340881819,1730005833448,-500.0,0.00044057,5]
[340881820,1730005833457,-500.0,0.00044057,5]
[340881821,1730005833466,-500.0,0.00044057,5]
[340881822,1730005833475,-549.6,0.00044057,5]
[340881823,1730005833484,-500.0,0.00044057,5]
[340881824,1730005833494,-500.0,0.00044057,5]
[340881825,1730005833503,-3473.42,0.00044057,5]
[340881826,1730005833513,-668.28,0.00044057,5]
[340881827,1730005833522,-668.28,0.00044057,5]
[340881828,1730005833531,-500.0,0.00044057,5]
[340881829,1730005833540,-500.0,0.00044057,5]
[340881830,1730005833549,-500.0,0.00044057,5]
[340881831,1730005833558,-500.0,0.00044057,5]
[340881832,1730005833567,-500.0,0.00044057,5]
[340881833,1730005833576,-151.0,0.00044058,14]
[340881834,1730005833585,-151.0,0.00044058,14]
[340881835,1730005833595,-280.806974,0.00044058,14]
[340881836,1730005833604,-339.967899,0.00044058,14]
[340881837,1730005833613,-339.967899,0.00044058,14]
[340881838,1730005833622,-339.967899,0.00044058,14]
[340881839,1730005833631,-339.967899,0.00044058,14]
[340881840,1730005833640,-339.967899,0.00044058,14]
[340881841,1730005833650,-339.967899,0.00044058,14]
[340881842,1730005833659,-339.967899,0.00044058,14]
[340881843,1730005833668,-339.967899,0.00044058,14]
[340881844,1730005833677,-152.816195,0.00044058,14]
[340881845,1730005833687,-152.142446,0.00044058,14]
[340881846,1730005833696,-151.0,0.00044058,14]
[340881847,1730005833706,-151.0,0.00044058,14]
[340881848,1730005833715,-151.0,0.00044058,14]
[340881849,1730005833724,-151.0,0.00044058,14]
[340881850,1730005833734,-154.397184,0.00044058,14]
[340881851,1730005833743,-182.844088,0.00044058,14]
[340881852,1730005833752,-182.844088,0.00044058,14]
[340881853,1730005833762,-182.844088,0.00044058,14]
[340881854,1730005833771,-182.844088,0.00044058,14]
[340881855,1730005833781,-182.844088,0.00044058,14]
[340881856,1730005833790,-182.844088,0.00044058,14]
[340881857,1730005833800,-151.0,0.00044058,14]
[340881858,1730005833809,-151.0,0.00044058,14]
[340881859,1730005833818,-151.0,0.00044058,14]
[340881860,1730005833828,-500.0,0.00044058,5]
[340881861,1730005833837,-500.0,0.00044058,5]
[340881862,1730005833849,-500.0,0.00044058,5]
[340881863,1730005833858,-172.13627624,0.00044058,5]
[340881864,1730005833867,-222.613836,0.00044059,14]
[340881865,1730005833876,-339.967899,0.00044059,14]
[340881866,1730005833886,-339.967899,0.00044059,14]
[340881867,1730005833895,-339.967899,0.00044059,14]
[340881868,1730005833904,-339.967899,0.00044059,14]
[340881869,1730005833913,-339.967899,0.00044059,14]
[340881870,1730005833922,-339.967899,0.00044059,14]
[340881871,1730005833931,-339.967899,0.00044059,14]
[340881872,1730005833941,-339.967899,0.00044059,14]
[340881873,1730005833950,-500.0,0.00044061,31]
[340881874,1730005833959,-312.18993138,0.00044061,120]
[340881875,1730005833968,-570.80253694,0.00044061,31]
[340881876,1730005833977,-500.0,0.00044061,5]
[340881877,1730005833987,-500.0,0.00044061,5]
[340881878,1730005833996,-549.6,0.00044061,5]
[340881879,1730005834005,-3473.42,0.00044061,5]
[340881880,1730005834014,-500.0,0.00044061,5]
[340881881,1730005834023,-500.0,0.00044061,5]
[340881882,1730005834032,-2399.01,0.00044061,5]
[340881883,1730005834041,-2399.01,0.00044061,5]
[340881884,1730005834050,-1137.39774144,0.00044061,5]
[340881891,1730005838296,-991.90437579,0.00044061,5]
[340881892,1730005838359,-1660.33590238,0.00044061,5]
[340881960,1730005840255,-518.21876778,0.00044061,5]
[340881977,1730005843104,-150.01,0.00044052,2]
[340881978,1730005843114,-3214.92836262,0.00044061,5]
[340881979,1730005843211,-2106.80484999,0.00044061,5]
[340881980,1730005843221,-385.59515004,0.00044061,5]
[340881993,1730005846024,-150.0,0.00015496,2]
[340881994,1730005846033,-2483.52661891,0.00044061,5]
[340881995,1730005846081,-809.07952203,0.00044061,5]
[340881996,1730005846244,-880.88045676,0.00044061,5]
[340882001,1730006707791,1049203.0,0.00015,2]
[340882002,1730006707816,537219.9405451,0.00015,2]
[340882003,1730006734784,150.09744179,0.0001,2]
[340882004,1730006736594,750.0,9e-05,2]